[Event "Titled Tuesday Blitz June 6 Late 2023"]
[White "Ansh M Shah"]
[Black "D`Arruda, Ricardo D."]
[WhiteFideId "25033379"]
[BlackFideId "100692"]
[WhiteElo "2084"]
[BlackElo "2537"]
[Result "1/2-1/2"]
[Round "9"]
[TimeControl "180+2"]
[Date "2023.06.07"]
[WhiteClock "0:00:11"]
[BlackClock "0:00:20"]
[Board "67"]

1. d4 {[%clk 0:03:00]}  Nf6 {[%clk 0:02:59]} 2. c4 {[%clk 0:03:01]}  e5 {[%clk 0:02:59]} 3. dxe5 {[%clk 0:03:00]}  Ne4 {[%clk 0:02:59]} 4. Nf3 {[%clk 0:03:01]}  Nc6 {[%clk 0:02:58]} 5. Qd5 {[%clk 0:02:54]}  Bb4+ {[%clk 0:02:55]} 6. Nbd2 {[%clk 0:02:54]}  Nxd2 {[%clk 0:02:54]} 7. Bxd2 {[%clk 0:02:55]}  Bxd2+ {[%clk 0:02:54]} 8. Qxd2 {[%clk 0:02:56]}  Qe7 {[%clk 0:02:53]} 9. Qc3 {[%clk 0:02:43]}  O-O {[%clk 0:02:52]} 10. O-O-O {[%clk 0:02:44]}  Re8 {[%clk 0:02:52]} 11. Rd5 {[%clk 0:02:38]}  Nb4 {[%clk 0:02:51]} 12. Ra5 {[%clk 0:02:34]}  b6 {[%clk 0:02:43]} 13. Ra4 {[%clk 0:02:34]}  Nc6 {[%clk 0:02:35]} 14. e3 {[%clk 0:02:29]}  Bb7 {[%clk 0:02:31]} 15. c5 {[%clk 0:02:16]}  Nxe5 {[%clk 0:02:26]} 16. Ba6 {[%clk 0:01:54]}  Bxa6 {[%clk 0:02:16]} 17. Rxa6 {[%clk 0:01:55]}  Nxf3 {[%clk 0:02:14]} 18. gxf3 {[%clk 0:01:56]}  Qxc5 {[%clk 0:02:12]} 19. Qxc5 {[%clk 0:01:48]}  bxc5 {[%clk 0:02:13]} 20. Rd1 {[%clk 0:01:42]}  d6 {[%clk 0:02:08]} 21. Rd3 {[%clk 0:01:17]}  Reb8 {[%clk 0:02:01]} 22. Kc2 {[%clk 0:01:10]}  Kf8 {[%clk 0:02:00]} 23. Rb3 {[%clk 0:01:10]}  Rb6 {[%clk 0:01:54]} 24. Rba3 {[%clk 0:00:59]}  Rxa6 {[%clk 0:01:52]} 25. Rxa6 {[%clk 0:01:00]}  Ke7 {[%clk 0:01:52]} 26. b3 {[%clk 0:00:39]}  Kd7 {[%clk 0:01:52]} 27. Ra5 {[%clk 0:00:39]}  Kc6 {[%clk 0:01:49]} 28. Ra4 {[%clk 0:00:38]}  a5 {[%clk 0:01:42]} 29. Rh4 {[%clk 0:00:35]}  h6 {[%clk 0:01:39]} 30. Rg4 {[%clk 0:00:35]}  g6 {[%clk 0:01:38]} 31. Rf4 {[%clk 0:00:35]}  f5 {[%clk 0:01:38]} 32. h4 {[%clk 0:00:35]}  h5 {[%clk 0:01:37]} 33. e4 {[%clk 0:00:34]}  Rf8 {[%clk 0:01:37]} 34. Kd2 {[%clk 0:00:27]}  Kd7 {[%clk 0:01:16]} 35. Ke3 {[%clk 0:00:23]}  Ke6 {[%clk 0:01:16]} 36. exf5+ {[%clk 0:00:20]}  Rxf5 {[%clk 0:01:17]} 37. Ra4 {[%clk 0:00:20]}  Re5+ {[%clk 0:01:08]} 38. Kf4 {[%clk 0:00:20]}  Re2 {[%clk 0:01:06]} 39. Kg3 {[%clk 0:00:18]}  d5 {[%clk 0:00:57]} 40. Rxa5 {[%clk 0:00:18]}  Kd6 {[%clk 0:00:56]} 41. Ra6+ {[%clk 0:00:17]}  c6 {[%clk 0:00:56]} 42. Ra7 {[%clk 0:00:17]}  d4 {[%clk 0:00:56]} 43. Rg7 {[%clk 0:00:14]}  Re6 {[%clk 0:00:54]} 44. Rg8 {[%clk 0:00:10]}  Kd7 {[%clk 0:00:53]} 45. Rg7+ {[%clk 0:00:10]}  Re7 {[%clk 0:00:45]} 46. Rxe7+ {[%clk 0:00:11]}  Kxe7 {[%clk 0:00:43]} 47. Kf4 {[%clk 0:00:12]}  c4 {[%clk 0:00:34]} 48. bxc4 {[%clk 0:00:11]}  Kd6 {[%clk 0:00:35]} 49. Ke4 {[%clk 0:00:09]}  Kc5 {[%clk 0:00:35]} 50. Kd3 {[%clk 0:00:09]}  g5 {[%clk 0:00:34]} 51. hxg5 {[%clk 0:00:08]}  Kd6 {[%clk 0:00:34]} 52. g6 {[%clk 0:00:08]}  Ke6 {[%clk 0:00:33]} 53. a4 {[%clk 0:00:08]}  h4 {[%clk 0:00:33]} 54. a5 {[%clk 0:00:09]}  h3 {[%clk 0:00:34]} 55. a6 {[%clk 0:00:10]}  h2 {[%clk 0:00:34]} 56. a7 {[%clk 0:00:11]}  h1=Q {[%clk 0:00:35]} 57. a8=Q {[%clk 0:00:11]}  Qxf3+ {[%clk 0:00:35]} 58. Kxd4 {[%clk 0:00:11]}  Qxf2+ {[%clk 0:00:35]} 59. Kc3 {[%clk 0:00:11]}  Qe3+ {[%clk 0:00:35]} 60. Kc2 {[%clk 0:00:12]}  Qe4+ {[%clk 0:00:35]} 61. Kb3 {[%clk 0:00:13]}  Qd3+ {[%clk 0:00:32]} 62. Kb2 {[%clk 0:00:12]}  Qd2+ {[%clk 0:00:31]} 63. Kb3 {[%clk 0:00:12]}  Qd1+ {[%clk 0:00:31]} 64. Kb4 {[%clk 0:00:12]}  Qd6+ {[%clk 0:00:31]} 65. Kc3 {[%clk 0:00:11]}  Qe5+ {[%clk 0:00:29]} 66. Kb3 {[%clk 0:00:12]}  Qe3+ {[%clk 0:00:28]} 67. Kb2 {[%clk 0:00:11]}  Qd4+ {[%clk 0:00:28]} 68. Kb3 {[%clk 0:00:11]}  Qd3+ {[%clk 0:00:28]} 69. Kb4 {[%clk 0:00:11]}  Qd6+ {[%clk 0:00:27]} 70. Kc3 {[%clk 0:00:11]}  Qe5+ {[%clk 0:00:27]} 71. Kd3 {[%clk 0:00:11]}  Qg3+ {[%clk 0:00:25]} 72. Ke2 {[%clk 0:00:10]}  Qg4+ {[%clk 0:00:23]} 73. Kd2 {[%clk 0:00:10]}  Qd4+ {[%clk 0:00:23]} 74. Ke1 {[%clk 0:00:10]}  Qc3+ {[%clk 0:00:23]} 75. Kf2 {[%clk 0:00:10]}  Qc2+ {[%clk 0:00:22]} 76. Kf3 {[%clk 0:00:10]}  Qd3+ {[%clk 0:00:22]} 77. Kf2 {[%clk 0:00:10]}  Qd2+ {[%clk 0:00:21]} 78. Kf3 {[%clk 0:00:11]}  Qc3+ {[%clk 0:00:21]} 79. Kf2 {[%clk 0:00:11]}  Qd4+ {[%clk 0:00:20]} 80. Ke1 {[%clk 0:00:10]}  Qe4+ {[%clk 0:00:20]} 81. Kd2 {[%clk 0:00:10]}  Qd4+ {[%clk 0:00:20]} 82. Ke1 {[%clk 0:00:11]} 1/2-1/2


[Site "https://www.chess.com"]

[Event "Titled Tuesday Blitz June 6 Late 2023"]
[White "Abduzhaparov"]
[Black "Bilan, Danila"]
[BlackFideId "24161918"]
[WhiteElo "2407"]
[BlackElo "2146"]
[Result "0-1"]
[Round "9"]
[TimeControl "180+2"]
[Date "2023.06.07"]
[WhiteClock "0:00:02"]
[BlackClock "0:00:03"]
[Board "68"]

1. Nf3 {[%clk 0:03:00]}  d5 {[%clk 0:02:59]} 2. c4 {[%clk 0:03:01]}  c6 {[%clk 0:02:59]} 3. d4 {[%clk 0:03:01]}  Nf6 {[%clk 0:03:00]} 4. e3 {[%clk 0:03:02]}  e6 {[%clk 0:02:59]} 5. b3 {[%clk 0:03:02]}  Nbd7 {[%clk 0:02:57]} 6. Bb2 {[%clk 0:03:03]}  Bb4+ {[%clk 0:02:57]} 7. Nbd2 {[%clk 0:03:03]}  Ne4 {[%clk 0:02:55]} 8. Bd3 {[%clk 0:03:03]}  f5 {[%clk 0:02:49]} 9. O-O {[%clk 0:02:59]}  O-O {[%clk 0:02:48]} 10. a3 {[%clk 0:02:57]}  Ba5 {[%clk 0:02:38]} 11. b4 {[%clk 0:02:57]}  Bc7 {[%clk 0:02:38]} 12. c5 {[%clk 0:02:57]}  Rf6 {[%clk 0:02:30]} 13. Ne5 {[%clk 0:02:54]}  Rh6 {[%clk 0:02:20]} 14. f4 {[%clk 0:02:48]}  Ndf6 {[%clk 0:02:14]} 15. Nxe4 {[%clk 0:02:41]}  dxe4 {[%clk 0:01:58]} 16. Bc4 {[%clk 0:02:22]}  Nd5 {[%clk 0:01:57]} 17. Bxd5 {[%clk 0:02:20]}  exd5 {[%clk 0:01:58]} 18. Qe2 {[%clk 0:02:15]}  a6 {[%clk 0:01:34]} 19. a4 {[%clk 0:02:14]}  Bd7 {[%clk 0:01:25]} 20. b5 {[%clk 0:02:03]}  Be8 {[%clk 0:01:06]} 21. bxc6 {[%clk 0:01:51]}  bxc6 {[%clk 0:00:42]} 22. Bc3 {[%clk 0:01:51]}  Bh5 {[%clk 0:00:28]} 23. Qf2 {[%clk 0:01:29]}  Rb8 {[%clk 0:00:27]} 24. Rfb1 {[%clk 0:01:26]}  g5 {[%clk 0:00:10]} 25. g3 {[%clk 0:01:11]}  Bxe5 {[%clk 0:00:08]} 26. dxe5 {[%clk 0:01:04]}  Bf3 {[%clk 0:00:08]} 27. a5 {[%clk 0:00:48]}  gxf4 {[%clk 0:00:07]} 28. exf4 {[%clk 0:00:46]}  Rg6 {[%clk 0:00:07]} 29. Rb6 {[%clk 0:00:39]}  h5 {[%clk 0:00:06]} 30. Rab1 {[%clk 0:00:24]}  Ra8 {[%clk 0:00:05]} 31. e6 {[%clk 0:00:07]}  h4 {[%clk 0:00:05]} 32. e7 {[%clk 0:00:03]}  Qxe7 {[%clk 0:00:04]} 33. Rb7 {[%clk 0:00:02]}  Qd8 {[%clk 0:00:03]} 0-1


[Site "https://www.chess.com"]

[Event "Titled Tuesday Blitz June 6 Late 2023"]
[White "Vovk, Orest"]
[Black "Olsson, William"]
[WhiteFideId "14113490"]
[BlackFideId "1741721"]
[WhiteElo "2215"]
[BlackElo "2197"]
[Result "1-0"]
[Round "9"]
[TimeControl "180+2"]
[Date "2023.06.07"]
[WhiteClock "0:00:52"]
[BlackClock "0:01:05"]
[Board "69"]

1. d4 {[%clk 0:02:51]}  d5 {[%clk 0:03:00]} 2. Nc3 {[%clk 0:02:49]}  Nf6 {[%clk 0:03:00]} 3. Nf3 {[%clk 0:02:47]}  c6 {[%clk 0:03:00]} 4. Ne5 {[%clk 0:02:47]}  Bf5 {[%clk 0:03:00]} 5. Bf4 {[%clk 0:02:46]}  e6 {[%clk 0:03:00]} 6. e3 {[%clk 0:02:46]}  h6 {[%clk 0:02:58]} 7. Bd3 {[%clk 0:02:45]}  Nbd7 {[%clk 0:02:55]} 8. Bxf5 {[%clk 0:02:44]}  exf5 {[%clk 0:02:56]} 9. O-O {[%clk 0:02:41]}  Ne4 {[%clk 0:02:54]} 10. Nxe4 {[%clk 0:02:40]}  fxe4 {[%clk 0:02:54]} 11. Nxd7 {[%clk 0:02:40]}  Qxd7 {[%clk 0:02:54]} 12. c4 {[%clk 0:02:40]}  dxc4 {[%clk 0:02:41]} 13. Qc2 {[%clk 0:02:39]}  Qd5 {[%clk 0:02:40]} 14. Rfc1 {[%clk 0:02:38]}  b5 {[%clk 0:02:40]} 15. a4 {[%clk 0:02:37]}  Be7 {[%clk 0:02:35]} 16. axb5 {[%clk 0:02:37]}  cxb5 {[%clk 0:02:35]} 17. Ra5 {[%clk 0:02:29]}  O-O {[%clk 0:02:32]} 18. Rca1 {[%clk 0:02:09]}  Qb7 {[%clk 0:02:30]} 19. Ra6 {[%clk 0:02:03]}  Rfc8 {[%clk 0:02:21]} 20. h3 {[%clk 0:01:57]}  b4 {[%clk 0:02:10]} 21. Qa4 {[%clk 0:01:43]}  c3 {[%clk 0:02:06]} 22. bxc3 {[%clk 0:01:41]}  bxc3 {[%clk 0:02:07]} 23. Rc1 {[%clk 0:01:23]}  Qb2 {[%clk 0:01:56]} 24. Rc2 {[%clk 0:01:21]}  Qb1+ {[%clk 0:01:47]} 25. Kh2 {[%clk 0:01:21]}  Ba3 {[%clk 0:01:40]} 26. d5 {[%clk 0:01:11]}  Rc4 {[%clk 0:01:20]} 27. Qxc4 {[%clk 0:01:06]}  Qxc2 {[%clk 0:01:20]} 28. Rxa3 {[%clk 0:01:04]}  Qxf2 {[%clk 0:01:20]} 29. Qxc3 {[%clk 0:00:58]}  a5 {[%clk 0:01:11]} 30. d6 {[%clk 0:00:55]}  g5 {[%clk 0:01:05]} 31. Bg3 {[%clk 0:00:52]} 1-0


[Site "https://www.chess.com"]

[Event "Titled Tuesday Blitz June 6 Late 2023"]
[White "Rodriguez Santiago, Jaime"]
[Black "Janaszak, Dawid"]
[WhiteFideId "3100898"]
[BlackFideId "1119206"]
[WhiteElo "2025"]
[BlackElo "2220"]
[Result "0-1"]
[Round "9"]
[TimeControl "180+2"]
[Date "2023.06.07"]
[WhiteClock "0:00:26"]
[BlackClock "0:00:33"]
[Board "70"]

1. c4 {[%clk 0:02:56]}  e6 {[%clk 0:02:59]} 2. Nf3 {[%clk 0:02:55]}  d5 {[%clk 0:02:59]} 3. g3 {[%clk 0:02:54]}  c5 {[%clk 0:02:58]} 4. Bg2 {[%clk 0:02:53]}  Nc6 {[%clk 0:02:59]} 5. O-O {[%clk 0:02:52]}  Nf6 {[%clk 0:02:59]} 6. b3 {[%clk 0:02:51]}  Be7 {[%clk 0:02:58]} 7. d3 {[%clk 0:02:49]}  O-O {[%clk 0:02:57]} 8. e3 {[%clk 0:02:49]}  e5 {[%clk 0:02:50]} 9. cxd5 {[%clk 0:02:38]}  Nxd5 {[%clk 0:02:49]} 10. Bb2 {[%clk 0:02:37]}  Bf6 {[%clk 0:02:47]} 11. Qe2 {[%clk 0:02:31]}  b6 {[%clk 0:02:42]} 12. Nc3 {[%clk 0:02:27]}  Ndb4 {[%clk 0:02:19]} 13. Rad1 {[%clk 0:02:23]}  Ba6 {[%clk 0:02:19]} 14. Ne1 {[%clk 0:02:21]}  Bb7 {[%clk 0:01:39]} 15. a3 {[%clk 0:02:18]}  Na6 {[%clk 0:01:39]} 16. Nd5 {[%clk 0:02:10]}  Na5 {[%clk 0:01:39]} 17. Nxf6+ {[%clk 0:02:09]}  Qxf6 {[%clk 0:01:39]} 18. Bxb7 {[%clk 0:02:08]}  Nxb7 {[%clk 0:01:40]} 19. f4 {[%clk 0:02:07]}  Qe6 {[%clk 0:01:37]} 20. d4 {[%clk 0:01:51]}  Nc7 {[%clk 0:01:30]} 21. dxe5 {[%clk 0:01:44]}  Qxb3 {[%clk 0:01:29]} 22. f5 {[%clk 0:01:43]}  Rad8 {[%clk 0:01:20]} 23. Ng2 {[%clk 0:01:39]}  Qb5 {[%clk 0:01:15]} 24. Qf2 {[%clk 0:01:30]}  Rxd1 {[%clk 0:01:09]} 25. Rxd1 {[%clk 0:01:29]}  Rd8 {[%clk 0:01:10]} 26. Rxd8+ {[%clk 0:01:12]}  Nxd8 {[%clk 0:01:11]} 27. h3 {[%clk 0:01:12]}  Qd3 {[%clk 0:01:07]} 28. Kh2 {[%clk 0:01:11]}  c4 {[%clk 0:01:05]} 29. Ne1 {[%clk 0:01:06]}  Qd1 {[%clk 0:00:59]} 30. Bc3 {[%clk 0:01:02]}  Nd5 {[%clk 0:00:55]} 31. Bd4 {[%clk 0:00:59]}  c3 {[%clk 0:00:53]} 32. Nc2 {[%clk 0:00:52]}  Qd2 {[%clk 0:00:50]} 33. Kg2 {[%clk 0:00:49]}  Nc6 {[%clk 0:00:50]} 34. Kf3 {[%clk 0:00:42]}  Qd3 {[%clk 0:00:46]} 35. Kg2 {[%clk 0:00:36]}  Nxd4 {[%clk 0:00:40]} 36. exd4 {[%clk 0:00:34]}  Qxc2 {[%clk 0:00:40]} 37. Qxc2 {[%clk 0:00:29]}  Ne3+ {[%clk 0:00:40]} 38. Kf3 {[%clk 0:00:30]}  Nxc2 {[%clk 0:00:41]} 39. Ke4 {[%clk 0:00:29]}  Nxd4 {[%clk 0:00:40]} 40. Kd3 {[%clk 0:00:29]}  c2 {[%clk 0:00:34]} 41. Kd2 {[%clk 0:00:27]}  Nxf5 {[%clk 0:00:34]} 42. g4 {[%clk 0:00:27]}  Ne3 {[%clk 0:00:34]} 43. a4 {[%clk 0:00:26]}  Kf8 {[%clk 0:00:33]} 0-1


[Site "https://www.chess.com"]

[Event "Titled Tuesday Blitz June 6 Late 2023"]
[White "Petesch, Gabriel"]
[Black "Cagara, Paulina"]
[WhiteFideId "2032465"]
[BlackFideId "1124870"]
[WhiteElo "2374"]
[BlackElo "1967"]
[Result "1-0"]
[Round "9"]
[TimeControl "180+2"]
[Date "2023.06.07"]
[WhiteClock "0:00:42"]
[BlackClock "0:00:11"]
[Board "73"]

1. e4 {[%clk 0:02:54]}  c6 {[%clk 0:02:59]} 2. Nc3 {[%clk 0:02:52]}  d5 {[%clk 0:02:59]} 3. Nf3 {[%clk 0:02:53]}  Bg4 {[%clk 0:02:58]} 4. Be2 {[%clk 0:02:52]}  e6 {[%clk 0:02:58]} 5. h3 {[%clk 0:02:51]}  Bh5 {[%clk 0:02:57]} 6. d3 {[%clk 0:02:50]}  Nd7 {[%clk 0:02:56]} 7. Bf4 {[%clk 0:02:46]}  Bb4 {[%clk 0:02:49]} 8. O-O {[%clk 0:02:45]}  Ne7 {[%clk 0:02:45]} 9. Ne5 {[%clk 0:02:40]}  Bxe2 {[%clk 0:02:44]} 10. Qxe2 {[%clk 0:02:40]}  O-O {[%clk 0:02:38]} 11. a3 {[%clk 0:02:39]}  Bd6 {[%clk 0:02:32]} 12. Nxf7 {[%clk 0:02:36]}  Rxf7 {[%clk 0:02:29]} 13. Bxd6 {[%clk 0:02:35]}  Nb6 {[%clk 0:02:25]} 14. Bh2 {[%clk 0:02:30]}  Ng6 {[%clk 0:02:20]} 15. f4 {[%clk 0:02:27]}  dxe4 {[%clk 0:02:16]} 16. dxe4 {[%clk 0:02:28]}  Qd4+ {[%clk 0:02:14]} 17. Kh1 {[%clk 0:02:28]}  Qc4 {[%clk 0:02:08]} 18. Qe3 {[%clk 0:02:21]}  Rd8 {[%clk 0:01:58]} 19. f5 {[%clk 0:02:11]}  Nf8 {[%clk 0:01:53]} 20. Qg5 {[%clk 0:02:05]}  Rdd7 {[%clk 0:01:42]} 21. Rf3 {[%clk 0:01:48]}  exf5 {[%clk 0:01:38]} 22. exf5 {[%clk 0:01:45]}  Nd5 {[%clk 0:01:25]} 23. Nxd5 {[%clk 0:01:41]}  Rxd5 {[%clk 0:01:24]} 24. c3 {[%clk 0:01:37]}  Qe2 {[%clk 0:01:18]} 25. b4 {[%clk 0:01:18]}  h6 {[%clk 0:01:07]} 26. Qg4 {[%clk 0:01:13]}  Rfd7 {[%clk 0:01:02]} 27. f6 {[%clk 0:01:02]}  Rg5 {[%clk 0:00:48]} 28. fxg7 {[%clk 0:00:50]}  Rxg4 {[%clk 0:00:15]} 29. gxf8=Q+ {[%clk 0:00:46]}  Kh7 {[%clk 0:00:15]} 30. hxg4 {[%clk 0:00:41]}  Rd1+ {[%clk 0:00:11]} 31. Rxd1 {[%clk 0:00:41]}  Qxd1+ {[%clk 0:00:11]} 32. Bg1 {[%clk 0:00:42]} 1-0


[Site "https://www.chess.com"]

[Event "Titled Tuesday Blitz June 6 Late 2023"]
[White "Szyszylo, Rafal"]
[Black "Gomez Ledo, Roberto Carlos"]
[WhiteFideId "1109626"]
[BlackFideId "3507076"]
[WhiteElo "1951"]
[BlackElo "2378"]
[Result "1/2-1/2"]
[Round "9"]
[TimeControl "180+2"]
[Date "2023.06.07"]
[WhiteClock "0:00:07"]
[BlackClock "0:00:15"]
[Board "75"]

1. e4 {[%clk 0:03:00]}  e5 {[%clk 0:02:59]} 2. Bc4 {[%clk 0:02:59]}  Nf6 {[%clk 0:02:57]} 3. Nc3 {[%clk 0:02:59]}  Nc6 {[%clk 0:02:56]} 4. d3 {[%clk 0:02:57]}  Bc5 {[%clk 0:02:56]} 5. f4 {[%clk 0:02:56]}  O-O {[%clk 0:02:54]} 6. Nf3 {[%clk 0:02:55]}  exf4 {[%clk 0:02:54]} 7. Bxf4 {[%clk 0:02:54]}  d6 {[%clk 0:02:54]} 8. d4 {[%clk 0:02:50]}  Bb4 {[%clk 0:02:42]} 9. Bg5 {[%clk 0:02:50]}  h6 {[%clk 0:02:40]} 10. Bxf6 {[%clk 0:02:43]}  Qxf6 {[%clk 0:02:39]} 11. O-O {[%clk 0:02:43]}  Bxc3 {[%clk 0:02:35]} 12. bxc3 {[%clk 0:02:43]}  Qe7 {[%clk 0:02:34]} 13. Qd2 {[%clk 0:02:13]}  Qxe4 {[%clk 0:02:28]} 14. Rae1 {[%clk 0:02:08]}  Qg4 {[%clk 0:02:26]} 15. h3 {[%clk 0:02:07]}  Qh5 {[%clk 0:02:24]} 16. Qf4 {[%clk 0:02:01]}  Qf5 {[%clk 0:02:17]} 17. Qg3 {[%clk 0:01:58]}  Qxc2 {[%clk 0:02:12]} 18. Ng5 {[%clk 0:01:36]}  hxg5 {[%clk 0:01:58]} 19. Rxf7 {[%clk 0:01:24]}  Be6 {[%clk 0:01:24]} 20. Rxf8+ {[%clk 0:00:53]}  Rxf8 {[%clk 0:01:25]} 21. Bxe6+ {[%clk 0:00:49]}  Kh8 {[%clk 0:01:23]} 22. Qxg5 {[%clk 0:00:48]}  Qf2+ {[%clk 0:01:16]} 23. Kh2 {[%clk 0:00:48]}  Qf4+ {[%clk 0:01:11]} 24. Qxf4 {[%clk 0:00:47]}  Rxf4 {[%clk 0:01:12]} 25. Kg3 {[%clk 0:00:33]}  Rf8 {[%clk 0:01:09]} 26. Bd5 {[%clk 0:00:26]}  Nd8 {[%clk 0:01:02]} 27. Re7 {[%clk 0:00:24]}  c6 {[%clk 0:01:02]} 28. Bf3 {[%clk 0:00:23]}  Kg8 {[%clk 0:00:52]} 29. Bh5 {[%clk 0:00:19]}  d5 {[%clk 0:00:51]} 30. Bg6 {[%clk 0:00:17]}  a5 {[%clk 0:00:47]} 31. h4 {[%clk 0:00:17]}  a4 {[%clk 0:00:46]} 32. h5 {[%clk 0:00:18]}  b6 {[%clk 0:00:44]} 33. a3 {[%clk 0:00:18]}  c5 {[%clk 0:00:44]} 34. Kg4 {[%clk 0:00:17]}  cxd4 {[%clk 0:00:42]} 35. cxd4 {[%clk 0:00:18]}  b5 {[%clk 0:00:42]} 36. Kg5 {[%clk 0:00:17]}  b4 {[%clk 0:00:41]} 37. h6 {[%clk 0:00:16]}  gxh6+ {[%clk 0:00:39]} 38. Kxh6 {[%clk 0:00:17]}  Nf7+ {[%clk 0:00:39]} 39. Kh5 {[%clk 0:00:10]}  b3 {[%clk 0:00:28]} 40. Rb7 {[%clk 0:00:10]}  Nd6 {[%clk 0:00:26]} 41. Ra7 {[%clk 0:00:10]}  b2 {[%clk 0:00:22]} 42. Kh6 {[%clk 0:00:08]}  Rb8 {[%clk 0:00:20]} 43. Rg7+ {[%clk 0:00:07]}  Kf8 {[%clk 0:00:20]} 44. Rd7 {[%clk 0:00:05]}  Ne4 {[%clk 0:00:19]} 45. Rf7+ {[%clk 0:00:05]}  Kg8 {[%clk 0:00:18]} 46. Rg7+ {[%clk 0:00:05]}  Kf8 {[%clk 0:00:18]} 47. Rf7+ {[%clk 0:00:06]}  Kg8 {[%clk 0:00:17]} 48. Rg7+ {[%clk 0:00:06]}  Kh8 {[%clk 0:00:15]} 49. Rh7+ {[%clk 0:00:06]}  Kg8 {[%clk 0:00:15]} 50. Rg7+ {[%clk 0:00:07]} 1/2-1/2


[Site "https://www.chess.com"]

[Event "Titled Tuesday Blitz June 6 Late 2023"]
[White "The_Straightforward_Rook"]
[Black "Prado Lobo, Jonas"]
[BlackFideId "32050666"]
[WhiteElo "2375"]
[BlackElo "2322"]
[Result "1-0"]
[Round "9"]
[TimeControl "180+2"]
[Date "2023.06.07"]
[WhiteClock "0:01:14"]
[BlackClock "0:00:57"]
[Board "78"]

1. d4 {[%clk 0:02:56]}  g6 {[%clk 0:02:58]} 2. e4 {[%clk 0:02:55]}  Bg7 {[%clk 0:02:59]} 3. Nf3 {[%clk 0:02:54]}  d6 {[%clk 0:03:00]} 4. Bd3 {[%clk 0:02:53]}  b6 {[%clk 0:02:55]} 5. O-O {[%clk 0:02:52]}  Bb7 {[%clk 0:02:56]} 6. Re1 {[%clk 0:02:52]}  Nd7 {[%clk 0:02:54]} 7. Nbd2 {[%clk 0:02:50]}  e6 {[%clk 0:02:54]} 8. Nf1 {[%clk 0:02:50]}  Ngf6 {[%clk 0:02:53]} 9. a4 {[%clk 0:02:50]}  O-O {[%clk 0:02:49]} 10. a5 {[%clk 0:02:49]}  c5 {[%clk 0:02:47]} 11. c3 {[%clk 0:02:47]}  Rc8 {[%clk 0:02:33]} 12. Bg5 {[%clk 0:02:44]}  h6 {[%clk 0:02:33]} 13. Bh4 {[%clk 0:02:44]}  Qc7 {[%clk 0:02:31]} 14. h3 {[%clk 0:02:40]}  Nh5 {[%clk 0:02:21]} 15. Bb1 {[%clk 0:02:13]}  g5 {[%clk 0:02:14]} 16. Bg3 {[%clk 0:02:12]}  Nxg3 {[%clk 0:02:04]} 17. Nxg3 {[%clk 0:02:13]}  Nf6 {[%clk 0:02:04]} 18. e5 {[%clk 0:02:03]}  dxe5 {[%clk 0:01:59]} 19. dxe5 {[%clk 0:02:01]}  Nd5 {[%clk 0:01:50]} 20. Qd3 {[%clk 0:01:48]}  f5 {[%clk 0:01:42]} 21. exf6 {[%clk 0:01:49]}  Nxf6 {[%clk 0:01:42]} 22. Nh5 {[%clk 0:01:48]}  Nxh5 {[%clk 0:01:30]} 23. Qh7+ {[%clk 0:01:47]}  Kf7 {[%clk 0:01:31]} 24. Bg6+ {[%clk 0:01:34]}  Ke7 {[%clk 0:01:18]} 25. Bxh5 {[%clk 0:01:33]}  Rg8 {[%clk 0:01:18]} 26. Qg6 {[%clk 0:01:30]}  Bd5 {[%clk 0:01:08]} 27. Rad1 {[%clk 0:01:23]}  Qc6 {[%clk 0:00:58]} 28. Qf7+ {[%clk 0:01:16]}  Kd6 {[%clk 0:00:57]} 29. Rxe6# {[%clk 0:01:14]} 1-0


[Site "https://www.chess.com"]

[Event "Titled Tuesday Blitz June 6 Late 2023"]
[White "Liu, Eric"]
[Black "Prieto Aranguren, Alain"]
[WhiteFideId "30960240"]
[BlackFideId "2268906"]
[WhiteElo "2094"]
[BlackElo "2209"]
[Result "0-1"]
[Round "9"]
[TimeControl "180+2"]
[Date "2023.06.07"]
[WhiteClock "0:01:33"]
[BlackClock "0:00:18"]
[Board "80"]

1. b3 {[%clk 0:03:00]}  a5 {[%clk 0:02:59]} 2. Bb2 {[%clk 0:03:01]}  a4 {[%clk 0:02:58]} 3. e3 {[%clk 0:03:01]}  e6 {[%clk 0:02:58]} 4. bxa4 {[%clk 0:03:01]}  Rxa4 {[%clk 0:02:55]} 5. Nf3 {[%clk 0:03:00]}  b6 {[%clk 0:02:52]} 6. c4 {[%clk 0:02:57]}  Ra5 {[%clk 0:02:51]} 7. h4 {[%clk 0:02:57]}  Bb7 {[%clk 0:02:51]} 8. h5 {[%clk 0:02:57]}  h6 {[%clk 0:02:50]} 9. Nc3 {[%clk 0:02:55]}  Nf6 {[%clk 0:02:50]} 10. d4 {[%clk 0:02:55]}  Rxh5 {[%clk 0:02:47]} 11. Rxh5 {[%clk 0:02:52]}  Nxh5 {[%clk 0:02:47]} 12. Bd3 {[%clk 0:02:49]}  Nf6 {[%clk 0:02:45]} 13. e4 {[%clk 0:02:48]}  d6 {[%clk 0:02:41]} 14. e5 {[%clk 0:02:46]}  dxe5 {[%clk 0:02:39]} 15. dxe5 {[%clk 0:02:47]}  Ng4 {[%clk 0:02:31]} 16. Qe2 {[%clk 0:02:46]}  Bc5 {[%clk 0:02:25]} 17. Ne4 {[%clk 0:02:38]}  Bxe4 {[%clk 0:02:22]} 18. Bxe4 {[%clk 0:02:38]}  Nxf2 {[%clk 0:02:17]} 19. Bc2 {[%clk 0:02:38]}  O-O {[%clk 0:02:00]} 20. Kf1 {[%clk 0:02:29]}  Ng4 {[%clk 0:01:57]} 21. Bc1 {[%clk 0:02:27]}  f5 {[%clk 0:01:41]} 22. exf6 {[%clk 0:02:27]}  Qxf6 {[%clk 0:01:39]} 23. Bb2 {[%clk 0:02:14]}  Ne3+ {[%clk 0:01:37]} 24. Ke1 {[%clk 0:02:13]}  Nxc2+ {[%clk 0:01:26]} 25. Qxc2 {[%clk 0:02:14]}  Qf4 {[%clk 0:01:22]} 26. Bc1 {[%clk 0:02:06]}  Qg3+ {[%clk 0:01:20]} 27. Kf1 {[%clk 0:02:06]}  Nc6 {[%clk 0:01:15]} 28. Bb2 {[%clk 0:02:00]}  Nb4 {[%clk 0:01:04]} 29. Qe2 {[%clk 0:01:55]}  e5 {[%clk 0:00:47]} 30. Bxe5 {[%clk 0:01:52]}  Rxf3+ {[%clk 0:00:41]} 31. Qxf3 {[%clk 0:01:50]}  Qxe5 {[%clk 0:00:41]} 32. Re1 {[%clk 0:01:48]}  Qf6 {[%clk 0:00:21]} 33. Qxf6 {[%clk 0:01:45]}  gxf6 {[%clk 0:00:20]} 34. a3 {[%clk 0:01:46]}  Nc6 {[%clk 0:00:19]} 35. Re8+ {[%clk 0:01:45]}  Kf7 {[%clk 0:00:19]} 36. Rc8 {[%clk 0:01:46]}  Bd6 {[%clk 0:00:19]} 37. a4 {[%clk 0:01:47]}  Ne5 {[%clk 0:00:19]} 38. c5 {[%clk 0:01:47]}  Bxc5 {[%clk 0:00:16]} 39. Rxc7+ {[%clk 0:01:47]}  Ke6 {[%clk 0:00:17]} 40. a5 {[%clk 0:01:44]}  Kd6 {[%clk 0:00:17]} 41. a6 {[%clk 0:01:44]}  Kxc7 {[%clk 0:00:16]} 42. g3 {[%clk 0:01:25]}  Kb8 {[%clk 0:00:15]} 43. Kg2 {[%clk 0:01:25]}  Ka7 {[%clk 0:00:16]} 44. Kh3 {[%clk 0:01:26]}  Kxa6 {[%clk 0:00:16]} 45. Kh4 {[%clk 0:01:27]}  b5 {[%clk 0:00:16]} 46. Kh5 {[%clk 0:01:28]}  b4 {[%clk 0:00:17]} 47. Kxh6 {[%clk 0:01:29]}  b3 {[%clk 0:00:17]} 48. Kg7 {[%clk 0:01:30]}  b2 {[%clk 0:00:17]} 49. Kxf6 {[%clk 0:01:30]}  b1=Q {[%clk 0:00:17]} 50. Kxe5 {[%clk 0:01:31]}  Qd3 {[%clk 0:00:17]} 51. g4 {[%clk 0:01:31]}  Qg3+ {[%clk 0:00:17]} 52. Kf5 {[%clk 0:01:31]}  Be7 {[%clk 0:00:18]} 53. Ke6 {[%clk 0:01:30]}  Qxg4+ {[%clk 0:00:18]} 54. Kxe7 {[%clk 0:01:30]}  Kb6 {[%clk 0:00:18]} 55. Kf6 {[%clk 0:01:30]}  Kc6 {[%clk 0:00:19]} 56. Ke5 {[%clk 0:01:30]}  Qg5+ {[%clk 0:00:18]} 57. Ke4 {[%clk 0:01:31]}  Kc5 {[%clk 0:00:18]} 58. Kd3 {[%clk 0:01:31]}  Qf4 {[%clk 0:00:18]} 59. Kc3 {[%clk 0:01:31]}  Qe3+ {[%clk 0:00:18]} 60. Kc2 {[%clk 0:01:31]}  Kc4 {[%clk 0:00:18]} 61. Kd1 {[%clk 0:01:31]}  Qf2 {[%clk 0:00:17]} 62. Kc1 {[%clk 0:01:31]}  Kb3 {[%clk 0:00:18]} 63. Kd1 {[%clk 0:01:32]}  Kc3 {[%clk 0:00:18]} 64. Kc1 {[%clk 0:01:33]}  Qf1# {[%clk 0:00:18]} 0-1


[Site "https://www.chess.com"]